[Event "Titled Tuesday Blitz April 26 Early 2022"]
[White "Salimova, Nurgyul"]
[Black "Chernomordik, Pavel"]
[WhiteFideId "2915138"]
[BlackFideId "2804530"]
[WhiteElo "2185"]
[BlackElo "2220"]
[Result "0-1"]
[Round "03"]
[TimeControl "180+1"]
[Date "2022.04.26"]
[WhiteClock "0:00:04"]
[BlackClock "0:00:11"]

1. d4 {[%clk 0:03:00]}  g6 {[%clk 0:02:59]} 2. h4 {[%clk 0:02:58]}  Nf6 {[%clk 0:02:56]} 3. c4 {[%clk 0:02:57]}  Bg7 {[%clk 0:02:55]} 4. Nc3 {[%clk 0:02:55]}  d6 {[%clk 0:02:50]} 5. e4 {[%clk 0:02:52]}  c6 {[%clk 0:02:47]} 6. Be2 {[%clk 0:02:45]}  h5 {[%clk 0:02:44]} 7. Nh3 {[%clk 0:02:41]}  a6 {[%clk 0:02:36]} 8. Ng5 {[%clk 0:02:30]}  b5 {[%clk 0:02:36]} 9. e5 {[%clk 0:01:56]}  dxe5 {[%clk 0:02:34]} 10. dxe5 {[%clk 0:01:57]}  Qxd1+ {[%clk 0:02:32]} 11. Nxd1 {[%clk 0:01:57]}  Ng4 {[%clk 0:02:25]} 12. e6 {[%clk 0:01:55]}  Bxe6 {[%clk 0:02:07]} 13. Nxe6 {[%clk 0:01:55]}  fxe6 {[%clk 0:02:07]} 14. a4 {[%clk 0:01:41]}  b4 {[%clk 0:01:58]} 15. a5 {[%clk 0:01:24]}  Nd7 {[%clk 0:01:53]} 16. Ra4 {[%clk 0:01:23]}  Rb8 {[%clk 0:01:47]} 17. Bxg4 {[%clk 0:01:16]}  hxg4 {[%clk 0:01:45]} 18. Be3 {[%clk 0:01:13]}  Rh5 {[%clk 0:01:36]} 19. Ke2 {[%clk 0:01:06]}  c5 {[%clk 0:01:20]} 20. b3 {[%clk 0:01:01]}  Bd4 {[%clk 0:01:17]} 21. Ra2 {[%clk 0:01:00]}  Ne5 {[%clk 0:01:12]} 22. Rd2 {[%clk 0:00:58]}  Nc6 {[%clk 0:01:10]} 23. Ra2 {[%clk 0:00:50]}  Rd8 {[%clk 0:01:07]} 24. Nb2 {[%clk 0:00:47]}  Re5 {[%clk 0:00:54]} 25. Nd3 {[%clk 0:00:29]}  Re4 {[%clk 0:00:53]} 26. h5 {[%clk 0:00:23]}  Kf7 {[%clk 0:00:44]} 27. hxg6+ {[%clk 0:00:19]}  Kxg6 {[%clk 0:00:44]} 28. Nf4+ {[%clk 0:00:19]}  Kg7 {[%clk 0:00:33]} 29. Nh5+ {[%clk 0:00:17]}  Kf7 {[%clk 0:00:33]} 30. Ng3 {[%clk 0:00:16]}  Re5 {[%clk 0:00:29]} 31. Rh7+ {[%clk 0:00:13]}  Kg6 {[%clk 0:00:27]} 32. Rh4 {[%clk 0:00:13]}  Bxe3 {[%clk 0:00:26]} 33. fxe3 {[%clk 0:00:12]}  Nd4+ {[%clk 0:00:26]} 34. Kf2 {[%clk 0:00:11]}  Rf8+ {[%clk 0:00:22]} 35. Kg1 {[%clk 0:00:11]}  Rxe3 {[%clk 0:00:21]} 36. Rxg4+ {[%clk 0:00:11]}  Kf7 {[%clk 0:00:20]} 37. Rf2+ {[%clk 0:00:10]}  Ke8 {[%clk 0:00:20]} 38. Rxf8+ {[%clk 0:00:06]}  Kxf8 {[%clk 0:00:20]} 39. Ne4 {[%clk 0:00:07]}  Nxb3 {[%clk 0:00:19]} 40. Ng5 {[%clk 0:00:05]}  Nxa5 {[%clk 0:00:17]} 41. Kf2 {[%clk 0:00:04]}  Re5 {[%clk 0:00:16]} 42. Nh7+ {[%clk 0:00:04]}  Ke8 {[%clk 0:00:16]} 43. Rg8+ {[%clk 0:00:05]}  Kd7 {[%clk 0:00:16]} 44. Nf8+ {[%clk 0:00:05]}  Kc7 {[%clk 0:00:15]} 45. g4 {[%clk 0:00:05]}  b3 {[%clk 0:00:14]} 46. Rh8 {[%clk 0:00:04]}  b2 {[%clk 0:00:13]} 47. Rh1 {[%clk 0:00:04]}  Nxc4 {[%clk 0:00:14]} 48. Ng6 {[%clk 0:00:05]}  Rg5 {[%clk 0:00:13]} 49. Nf4 {[%clk 0:00:04]}  Rxg4 {[%clk 0:00:12]} 50. Nxe6+ {[%clk 0:00:05]}  Kd6 {[%clk 0:00:13]} 51. Nd8 {[%clk 0:00:05]}  Na3 {[%clk 0:00:11]} 52. Nb7+ {[%clk 0:00:05]}  Kc6 {[%clk 0:00:11]} 53. Nd8+ {[%clk 0:00:04]}  Kb5 {[%clk 0:00:11]} 0-1


[Site "https://www.chess.com"]

[Event "Titled Tuesday Blitz April 26 Early 2022"]
[White "Sanal, Vahap"]
[Black "Tristan, Leonardo"]
[WhiteFideId "6300545"]
[BlackFideId "113816"]
[WhiteElo "2603"]
[BlackElo "2404"]
[Result "1-0"]
[Round "03"]
[TimeControl "180+1"]
[Date "2022.04.26"]
[WhiteClock "0:00:23"]
[BlackClock "0:00:07"]

1. e4 {[%clk 0:03:00]}  d5 {[%clk 0:03:00]} 2. exd5 {[%clk 0:03:00]}  Qxd5 {[%clk 0:03:01]} 3. Nc3 {[%clk 0:03:00]}  Qa5 {[%clk 0:03:01]} 4. d4 {[%clk 0:03:01]}  Nf6 {[%clk 0:03:01]} 5. Bc4 {[%clk 0:03:01]}  Bg4 {[%clk 0:03:01]} 6. Nf3 {[%clk 0:02:59]}  Nc6 {[%clk 0:03:00]} 7. h3 {[%clk 0:02:49]}  Bxf3 {[%clk 0:02:44]} 8. Qxf3 {[%clk 0:02:49]}  O-O-O {[%clk 0:02:45]} 9. d5 {[%clk 0:02:19]}  Nb4 {[%clk 0:02:43]} 10. O-O {[%clk 0:02:17]}  Nxc2 {[%clk 0:02:37]} 11. Qf5+ {[%clk 0:02:17]}  e6 {[%clk 0:02:30]} 12. Qxc2 {[%clk 0:02:18]}  exd5 {[%clk 0:02:31]} 13. Qf5+ {[%clk 0:02:14]}  Kb8 {[%clk 0:02:30]} 14. Bg5 {[%clk 0:02:14]}  c6 {[%clk 0:02:22]} 15. Bxf6 {[%clk 0:02:08]}  gxf6 {[%clk 0:02:22]} 16. Bd3 {[%clk 0:02:03]}  Bd6 {[%clk 0:02:16]} 17. Qxf6 {[%clk 0:01:59]}  Qc7 {[%clk 0:02:16]} 18. Rac1 {[%clk 0:01:55]}  Qb6 {[%clk 0:02:11]} 19. Rc2 {[%clk 0:01:48]}  Rhe8 {[%clk 0:02:04]} 20. Re2 {[%clk 0:01:39]}  Rg8 {[%clk 0:01:54]} 21. Bxh7 {[%clk 0:01:35]}  Rh8 {[%clk 0:01:54]} 22. Bb1 {[%clk 0:01:31]}  Bc7 {[%clk 0:01:39]} 23. a3 {[%clk 0:01:25]}  Rdg8 {[%clk 0:01:38]} 24. Bf5 {[%clk 0:01:20]}  Bd8 {[%clk 0:01:29]} 25. Qxf7 {[%clk 0:01:15]}  Rf8 {[%clk 0:01:30]} 26. Qd7 {[%clk 0:01:13]}  Bf6 {[%clk 0:01:16]} 27. g3 {[%clk 0:00:59]}  a5 {[%clk 0:00:50]} 28. h4 {[%clk 0:00:49]}  Bxh4 {[%clk 0:00:41]} 29. gxh4 {[%clk 0:00:49]}  Rfg8+ {[%clk 0:00:38]} 30. Bg4 {[%clk 0:00:49]}  Qd4 {[%clk 0:00:29]} 31. Re4 {[%clk 0:00:48]}  Qf6 {[%clk 0:00:21]} 32. Re7 {[%clk 0:00:34]}  Rxg4+ {[%clk 0:00:21]} 33. Qxg4 {[%clk 0:00:34]}  Qxe7 {[%clk 0:00:21]} 34. Ne2 {[%clk 0:00:30]}  Rxh4 {[%clk 0:00:20]} 35. Qg8+ {[%clk 0:00:30]}  Ka7 {[%clk 0:00:20]} 36. Ng3 {[%clk 0:00:30]}  Qf6 {[%clk 0:00:18]} 37. Re1 {[%clk 0:00:25]}  Qxb2 {[%clk 0:00:16]} 38. Qd8 {[%clk 0:00:25]}  Rh8 {[%clk 0:00:10]} 39. Qxa5+ {[%clk 0:00:24]}  Kb8 {[%clk 0:00:11]} 40. Qb4 {[%clk 0:00:24]}  Qxb4 {[%clk 0:00:10]} 41. axb4 {[%clk 0:00:25]}  Rh4 {[%clk 0:00:10]} 42. b5 {[%clk 0:00:23]}  cxb5 {[%clk 0:00:07]} 43. Rf1 {[%clk 0:00:20]}  Rf4 {[%clk 0:00:06]} 44. Ne2 {[%clk 0:00:20]}  Rg4+ {[%clk 0:00:04]} 45. Kh2 {[%clk 0:00:20]}  b4 {[%clk 0:00:05]} 46. f4 {[%clk 0:00:21]}  Kc7 {[%clk 0:00:05]} 47. Rb1 {[%clk 0:00:20]}  Kc6 {[%clk 0:00:04]} 48. Rxb4 {[%clk 0:00:21]}  Rg7 {[%clk 0:00:03]} 49. Kh3 {[%clk 0:00:20]}  Kc5 {[%clk 0:00:03]} 50. Rb1 {[%clk 0:00:20]}  Re7 {[%clk 0:00:03]} 51. Ng3 {[%clk 0:00:19]}  d4 {[%clk 0:00:03]} 52. Kg4 {[%clk 0:00:19]}  d3 {[%clk 0:00:03]} 53. Kf3 {[%clk 0:00:20]}  Kd4 {[%clk 0:00:04]} 54. Nf5+ {[%clk 0:00:19]}  Kc3 {[%clk 0:00:04]} 55. Nxe7 {[%clk 0:00:20]}  Kc2 {[%clk 0:00:05]} 56. Rxb7 {[%clk 0:00:20]}  d2 {[%clk 0:00:06]} 57. Rd7 {[%clk 0:00:21]}  d1=Q+ {[%clk 0:00:06]} 58. Rxd1 {[%clk 0:00:22]}  Kxd1 {[%clk 0:00:07]} 59. f5 {[%clk 0:00:23]} 1-0


[Site "https://www.chess.com"]

[Event "Titled Tuesday Blitz April 26 Early 2022"]
[White "Sanchez, Robert"]
[Black "Antonio, Jorge Carlos"]
[WhiteFideId "2034360"]
[BlackFideId "113190"]
[WhiteElo "2398"]
[BlackElo "2247"]
[Result "1-0"]
[Round "03"]
[TimeControl "180+1"]
[Date "2022.04.26"]
[WhiteClock "0:02:45"]
[BlackClock "0:02:14"]

1. e4 {[%clk 0:03:00]}  c5 {[%clk 0:02:59]} 2. Nf3 {[%clk 0:03:00]}  e6 {[%clk 0:02:59]} 3. d4 {[%clk 0:03:01]}  cxd4 {[%clk 0:03:00]} 4. Nxd4 {[%clk 0:03:02]}  Nc6 {[%clk 0:03:00]} 5. Nc3 {[%clk 0:03:02]}  Bb4 {[%clk 0:02:58]} 6. Nb5 {[%clk 0:03:02]}  d6 {[%clk 0:02:58]} 7. a3 {[%clk 0:02:59]}  Bxc3+ {[%clk 0:02:21]} 8. bxc3 {[%clk 0:02:58]}  Ke7 {[%clk 0:02:15]} 9. a4 {[%clk 0:02:47]}  a6 {[%clk 0:02:15]} 10. Nxd6 {[%clk 0:02:45]}  Qxd6 {[%clk 0:02:14]} 11. Ba3 {[%clk 0:02:45]} 1-0


[Site "https://www.chess.com"]

[Event "Titled Tuesday Blitz April 26 Early 2022"]
[White "Shtyka, Sergey"]
[Black "Jaracz, Pawel"]
[WhiteFideId "4138465"]
[BlackFideId "1102222"]
[WhiteElo "2014"]
[BlackElo "2429"]
[Result "0-1"]
[Round "03"]
[TimeControl "180+1"]
[Date "2022.04.26"]
[WhiteClock "0:00:03"]
[BlackClock "0:00:19"]

1. e4 {[%clk 0:03:00]}  c5 {[%clk 0:02:56]} 2. Nf3 {[%clk 0:03:01]}  Nc6 {[%clk 0:02:55]} 3. d4 {[%clk 0:03:01]}  cxd4 {[%clk 0:02:55]} 4. Nxd4 {[%clk 0:03:01]}  Nf6 {[%clk 0:02:55]} 5. Nc3 {[%clk 0:03:02]}  e5 {[%clk 0:02:55]} 6. Ndb5 {[%clk 0:03:02]}  d6 {[%clk 0:02:55]} 7. Bg5 {[%clk 0:03:02]}  a6 {[%clk 0:02:56]} 8. Na3 {[%clk 0:03:03]}  b5 {[%clk 0:02:56]} 9. Bxf6 {[%clk 0:03:03]}  gxf6 {[%clk 0:02:56]} 10. Nd5 {[%clk 0:03:04]}  Bg7 {[%clk 0:02:51]} 11. c3 {[%clk 0:03:04]}  f5 {[%clk 0:02:47]} 12. exf5 {[%clk 0:03:05]}  Bxf5 {[%clk 0:02:47]} 13. Nc2 {[%clk 0:03:05]}  O-O {[%clk 0:02:46]} 14. Nce3 {[%clk 0:03:06]}  Be6 {[%clk 0:02:46]} 15. Bd3 {[%clk 0:03:06]}  f5 {[%clk 0:02:42]} 16. Qh5 {[%clk 0:03:05]}  e4 {[%clk 0:02:40]} 17. Bc2 {[%clk 0:03:05]}  Ne5 {[%clk 0:02:33]} 18. Nf4 {[%clk 0:03:02]}  Bd7 {[%clk 0:02:27]} 19. Rd1 {[%clk 0:02:44]}  Be8 {[%clk 0:02:16]} 20. Qh3 {[%clk 0:02:30]}  Qf6 {[%clk 0:02:06]} 21. Bb3+ {[%clk 0:01:18]}  Kh8 {[%clk 0:02:00]} 22. Ne6 {[%clk 0:01:15]}  Rf7 {[%clk 0:01:41]} 23. Nxg7 {[%clk 0:01:08]}  Rxg7 {[%clk 0:01:41]} 24. Qxf5 {[%clk 0:01:00]}  Qxf5 {[%clk 0:01:34]} 25. Nxf5 {[%clk 0:01:00]}  Rxg2 {[%clk 0:01:34]} 26. Kf1 {[%clk 0:00:52]}  Rg5 {[%clk 0:01:27]} 27. Nxd6 {[%clk 0:00:52]}  Bh5 {[%clk 0:01:25]} 28. Rd5 {[%clk 0:00:29]}  Bf3 {[%clk 0:00:53]} 29. Rg1 {[%clk 0:00:22]}  Rxg1+ {[%clk 0:00:52]} 30. Kxg1 {[%clk 0:00:20]}  Nd3 {[%clk 0:00:30]} 31. Rg5 {[%clk 0:00:18]}  h6 {[%clk 0:00:30]} 32. Rg3 {[%clk 0:00:15]}  Ne5 {[%clk 0:00:24]} 33. h4 {[%clk 0:00:12]}  Rd8 {[%clk 0:00:21]} 34. Nf7+ {[%clk 0:00:06]}  Nxf7 {[%clk 0:00:21]} 35. Rxf3 {[%clk 0:00:01]}  exf3 {[%clk 0:00:20]} 36. Bxf7 {[%clk 0:00:01]}  Rd2 {[%clk 0:00:19]} 37. Kh2 {[%clk 0:00:02]}  Rxf2+ {[%clk 0:00:18]} 38. Kg3 {[%clk 0:00:03]}  Rxb2 {[%clk 0:00:19]} 39. Kxf3 {[%clk 0:00:03]}  Rc2 {[%clk 0:00:19]} 0-1


[Site "https://www.chess.com"]

[Event "Titled Tuesday Blitz April 26 Early 2022"]
[White "Sihite, Chelsie Monica Ignesias"]
[Black "De Souza, Cristiano Gomes"]
[WhiteFideId "7101198"]
[BlackFideId "2151758"]
[WhiteElo "2224"]
[BlackElo "2068"]
[Result "1-0"]
[Round "03"]
[TimeControl "180+1"]
[Date "2022.04.26"]
[WhiteClock "0:02:38"]
[BlackClock "0:02:19"]

1. c4 {[%clk 0:02:57]}  Nf6 {[%clk 0:02:58]} 2. g3 {[%clk 0:02:58]}  g6 {[%clk 0:02:58]} 3. Bg2 {[%clk 0:02:58]}  Bg7 {[%clk 0:02:58]} 4. Nf3 {[%clk 0:02:59]}  O-O {[%clk 0:02:59]} 5. O-O {[%clk 0:03:00]}  d6 {[%clk 0:02:59]} 6. b3 {[%clk 0:03:01]}  e5 {[%clk 0:02:59]} 7. Nc3 {[%clk 0:03:01]}  Nc6 {[%clk 0:03:00]} 8. Bb2 {[%clk 0:03:01]}  b6 {[%clk 0:02:57]} 9. d3 {[%clk 0:03:01]}  Bb7 {[%clk 0:02:58]} 10. Nd2 {[%clk 0:03:02]}  Na5 {[%clk 0:02:55]} 11. b4 {[%clk 0:03:00]}  Bxg2 {[%clk 0:02:53]} 12. Kxg2 {[%clk 0:03:01]}  Nb7 {[%clk 0:02:53]} 13. a4 {[%clk 0:03:01]}  a5 {[%clk 0:02:53]} 14. b5 {[%clk 0:03:01]}  Nc5 {[%clk 0:02:53]} 15. Nce4 {[%clk 0:03:01]}  Nfxe4 {[%clk 0:02:52]} 16. Nxe4 {[%clk 0:03:02]}  Nxe4 {[%clk 0:02:50]} 17. dxe4 {[%clk 0:03:02]}  f5 {[%clk 0:02:51]} 18. Qd5+ {[%clk 0:03:02]}  Kh8 {[%clk 0:02:51]} 19. Rad1 {[%clk 0:03:02]}  f4 {[%clk 0:02:51]} 20. g4 {[%clk 0:03:01]}  f3+ {[%clk 0:02:49]} 21. exf3 {[%clk 0:03:01]}  Qh4 {[%clk 0:02:49]} 22. Rd3 {[%clk 0:03:00]}  Bh6 {[%clk 0:02:48]} 23. Bc1 {[%clk 0:03:00]}  Bxc1 {[%clk 0:02:42]} 24. Rxc1 {[%clk 0:03:01]}  Rae8 {[%clk 0:02:38]} 25. c5 {[%clk 0:02:58]}  bxc5 {[%clk 0:02:37]} 26. b6 {[%clk 0:02:58]}  h5 {[%clk 0:02:33]} 27. h3 {[%clk 0:02:53]}  hxg4 {[%clk 0:02:33]} 28. hxg4 {[%clk 0:02:54]}  Kg7 {[%clk 0:02:31]} 29. Rh1 {[%clk 0:02:51]}  Qg5 {[%clk 0:02:29]} 30. bxc7 {[%clk 0:02:51]}  Rf6 {[%clk 0:02:22]} 31. Qc6 {[%clk 0:02:45]}  Rc8 {[%clk 0:02:19]} 32. Qd7+ {[%clk 0:02:38]} 1-0


[Site "https://www.chess.com"]

[Event "Titled Tuesday Blitz April 26 Early 2022"]
[White "Silvestre, Christian"]
[Black "Omelja, Artem"]
[WhiteFideId "30956269"]
[BlackFideId "14119846"]
[WhiteElo "2312"]
[BlackElo "2382"]
[Result "1-0"]
[Round "03"]
[TimeControl "180+1"]
[Date "2022.04.26"]
[WhiteClock "0:00:09"]
[BlackClock "0:00:02"]

1. Nf3 {[%clk 0:02:53]}  d5 {[%clk 0:02:56]} 2. d4 {[%clk 0:02:53]}  Nf6 {[%clk 0:02:55]} 3. Bf4 {[%clk 0:02:53]}  c5 {[%clk 0:02:55]} 4. e3 {[%clk 0:02:52]}  Nc6 {[%clk 0:02:55]} 5. c3 {[%clk 0:02:52]}  Qb6 {[%clk 0:02:56]} 6. Qb3 {[%clk 0:02:51]}  c4 {[%clk 0:02:56]} 7. Qc2 {[%clk 0:02:51]}  Bf5 {[%clk 0:02:57]} 8. Qc1 {[%clk 0:02:50]}  Nh5 {[%clk 0:02:44]} 9. Bg3 {[%clk 0:02:42]}  f6 {[%clk 0:02:38]} 10. Nbd2 {[%clk 0:02:37]}  Nxg3 {[%clk 0:02:37]} 11. hxg3 {[%clk 0:02:36]}  e5 {[%clk 0:02:37]} 12. Be2 {[%clk 0:02:35]}  Bd6 {[%clk 0:02:14]} 13. Nh4 {[%clk 0:02:30]}  Bd3 {[%clk 0:01:46]} 14. b4 {[%clk 0:01:44]}  O-O-O {[%clk 0:01:34]} 15. Bxd3 {[%clk 0:01:33]}  cxd3 {[%clk 0:01:34]} 16. Qb1 {[%clk 0:01:12]}  e4 {[%clk 0:00:45]} 17. a4 {[%clk 0:01:10]}  Kb8 {[%clk 0:00:44]} 18. g4 {[%clk 0:00:54]}  Ne7 {[%clk 0:00:40]} 19. Nf5 {[%clk 0:00:49]}  Nxf5 {[%clk 0:00:38]} 20. gxf5 {[%clk 0:00:50]}  Rc8 {[%clk 0:00:38]} 21. Qb3 {[%clk 0:00:47]}  Qc6 {[%clk 0:00:32]} 22. Rc1 {[%clk 0:00:42]}  h6 {[%clk 0:00:27]} 23. b5 {[%clk 0:00:37]}  Qc7 {[%clk 0:00:16]} 24. Qxd5 {[%clk 0:00:38]}  Ba3 {[%clk 0:00:16]} 25. Rd1 {[%clk 0:00:30]}  Qxc3 {[%clk 0:00:16]} 26. O-O {[%clk 0:00:30]}  Rhe8 {[%clk 0:00:15]} 27. Nxe4 {[%clk 0:00:26]}  Qc2 {[%clk 0:00:12]} 28. Nd6 {[%clk 0:00:17]}  Bxd6 {[%clk 0:00:05]} 29. Qxd6+ {[%clk 0:00:18]}  Ka8 {[%clk 0:00:05]} 30. Qa3 {[%clk 0:00:18]}  Rc3 {[%clk 0:00:04]} 31. Qb4 {[%clk 0:00:16]}  Rec8 {[%clk 0:00:03]} 32. b6 {[%clk 0:00:16]}  a6 {[%clk 0:00:03]} 33. Qe7 {[%clk 0:00:15]}  d2 {[%clk 0:00:03]} 34. d5 {[%clk 0:00:14]}  Qxd1 {[%clk 0:00:02]} 35. Rxd1 {[%clk 0:00:13]}  Rc1 {[%clk 0:00:02]} 36. Kf1 {[%clk 0:00:09]}  Rxd1+ {[%clk 0:00:02]} 37. Ke2 {[%clk 0:00:09]}  Rdc1 {[%clk 0:00:01]} 38. Kxd2 {[%clk 0:00:08]}  R8c2+ {[%clk 0:00:02]} 39. Kd3 {[%clk 0:00:08]}  Rc3+ {[%clk 0:00:03]} 40. Ke4 {[%clk 0:00:08]}  Rc4+ {[%clk 0:00:04]} 41. Kf3 {[%clk 0:00:08]}  Rc8 {[%clk 0:00:05]} 42. d6 {[%clk 0:00:08]}  Rd1 {[%clk 0:00:05]} 43. Qc7 {[%clk 0:00:08]}  Rf8 {[%clk 0:00:03]} 44. d7 {[%clk 0:00:08]}  Rg8 {[%clk 0:00:02]} 45. Qc8+ {[%clk 0:00:08]}  Rxc8 {[%clk 0:00:02]} 46. dxc8=Q# {[%clk 0:00:09]} 1-0


[Site "https://www.chess.com"]

[Event "Titled Tuesday Blitz April 26 Early 2022"]
[White "Sjugirov, Sanan"]
[Black "Ronka, Erik"]
[WhiteFideId "4189302"]
[BlackFideId "505080"]
[WhiteElo "2602"]
[BlackElo "2264"]
[Result "1-0"]
[Round "03"]
[TimeControl "180+1"]
[Date "2022.04.26"]
[WhiteClock "0:00:35"]
[BlackClock "0:00:06"]

1. d4 {[%clk 0:03:00]}  d5 {[%clk 0:02:59]} 2. c4 {[%clk 0:03:01]}  c6 {[%clk 0:03:00]} 3. Nf3 {[%clk 0:03:02]}  Nf6 {[%clk 0:03:00]} 4. e3 {[%clk 0:03:02]}  Bf5 {[%clk 0:03:00]} 5. Nc3 {[%clk 0:03:03]}  a6 {[%clk 0:03:00]} 6. Bd3 {[%clk 0:03:02]}  Bg6 {[%clk 0:03:00]} 7. O-O {[%clk 0:03:02]}  e6 {[%clk 0:03:00]} 8. Re1 {[%clk 0:03:02]}  Bb4 {[%clk 0:02:58]} 9. Bxg6 {[%clk 0:03:01]}  hxg6 {[%clk 0:02:58]} 10. Qb3 {[%clk 0:03:02]}  Bxc3 {[%clk 0:02:57]} 11. bxc3 {[%clk 0:03:02]}  b5 {[%clk 0:02:38]} 12. cxb5 {[%clk 0:02:59]}  axb5 {[%clk 0:02:39]} 13. Ba3 {[%clk 0:02:59]}  Ne4 {[%clk 0:02:31]} 14. Bb4 {[%clk 0:02:53]}  Ra4 {[%clk 0:02:28]} 15. g3 {[%clk 0:02:39]}  Nd7 {[%clk 0:02:26]} 16. Qc2 {[%clk 0:02:31]}  f6 {[%clk 0:02:20]} 17. Nd2 {[%clk 0:02:29]}  f5 {[%clk 0:02:16]} 18. f3 {[%clk 0:02:15]}  Nxd2 {[%clk 0:01:53]} 19. Qxd2 {[%clk 0:02:16]}  Nf6 {[%clk 0:01:53]} 20. Qd3 {[%clk 0:02:01]}  g5 {[%clk 0:01:51]} 21. e4 {[%clk 0:01:57]}  dxe4 {[%clk 0:01:47]} 22. fxe4 {[%clk 0:01:58]}  Nxe4 {[%clk 0:01:38]} 23. Rxe4 {[%clk 0:01:59]}  fxe4 {[%clk 0:01:38]} 24. Qxe4 {[%clk 0:02:00]}  Qd7 {[%clk 0:01:29]} 25. Rf1 {[%clk 0:01:55]}  Rxb4 {[%clk 0:01:16]} 26. cxb4 {[%clk 0:01:55]}  Rh6 {[%clk 0:01:15]} 27. Qe5 {[%clk 0:01:53]}  Rf6 {[%clk 0:00:44]} 28. Rxf6 {[%clk 0:01:52]}  gxf6 {[%clk 0:00:44]} 29. Qxf6 {[%clk 0:01:52]}  Qd5 {[%clk 0:00:45]} 30. a3 {[%clk 0:01:52]}  Qb3 {[%clk 0:00:26]} 31. Qxg5 {[%clk 0:01:44]}  Qxa3 {[%clk 0:00:25]} 32. Qd2 {[%clk 0:01:34]}  Qf3 {[%clk 0:00:22]} 33. Qf2 {[%clk 0:01:29]}  Qd1+ {[%clk 0:00:20]} 34. Kg2 {[%clk 0:01:29]}  Qb3 {[%clk 0:00:21]} 35. Qd2 {[%clk 0:01:28]}  Qd5+ {[%clk 0:00:20]} 36. Kf2 {[%clk 0:01:19]}  e5 {[%clk 0:00:19]} 37. Qe3 {[%clk 0:01:05]}  e4 {[%clk 0:00:20]} 38. g4 {[%clk 0:01:01]}  Kd7 {[%clk 0:00:17]} 39. h4 {[%clk 0:00:58]}  Qf7+ {[%clk 0:00:10]} 40. Kg3 {[%clk 0:00:58]}  Qe6 {[%clk 0:00:11]} 41. h5 {[%clk 0:00:57]}  Qd6+ {[%clk 0:00:11]} 42. Qf4 {[%clk 0:00:54]}  Qxb4 {[%clk 0:00:12]} 43. Qxe4 {[%clk 0:00:50]}  Qc3+ {[%clk 0:00:12]} 44. Kh4 {[%clk 0:00:49]}  b4 {[%clk 0:00:12]} 45. h6 {[%clk 0:00:48]}  Qc1 {[%clk 0:00:12]} 46. Qf5+ {[%clk 0:00:45]}  Kc7 {[%clk 0:00:12]} 47. Qe5+ {[%clk 0:00:40]}  Kb7 {[%clk 0:00:12]} 48. Qe7+ {[%clk 0:00:39]}  Kc8 {[%clk 0:00:11]} 49. h7 {[%clk 0:00:35]}  Qh1+ {[%clk 0:00:09]} 50. Kg5 {[%clk 0:00:35]}  Qc1+ {[%clk 0:00:07]} 51. Kg6 {[%clk 0:00:35]}  Qc2+ {[%clk 0:00:06]} 52. Kg7 {[%clk 0:00:35]} 1-0


[Site "https://www.chess.com"]

[Event "Titled Tuesday Blitz April 26 Early 2022"]
[White "Srebrnic, Marko"]
[Black "Shandrygin, Nikita"]
[WhiteFideId "14603616"]
[BlackFideId "24198668"]
[WhiteElo "2340"]
[BlackElo "2323"]
[Result "0-1"]
[Round "03"]
[TimeControl "180+1"]
[Date "2022.04.26"]
[WhiteClock "0:00:35"]
[BlackClock "0:00:08"]

1. e4 {[%clk 0:03:00]}  c5 {[%clk 0:02:58]} 2. Nf3 {[%clk 0:02:58]}  e6 {[%clk 0:02:58]} 3. d4 {[%clk 0:02:58]}  cxd4 {[%clk 0:02:59]} 4. Nxd4 {[%clk 0:02:59]}  Nf6 {[%clk 0:02:59]} 5. Nc3 {[%clk 0:02:59]}  Nc6 {[%clk 0:02:59]} 6. Be2 {[%clk 0:02:58]}  Qc7 {[%clk 0:02:58]} 7. g3 {[%clk 0:02:56]}  a6 {[%clk 0:02:52]} 8. Bg5 {[%clk 0:02:54]}  Be7 {[%clk 0:02:45]} 9. Qd2 {[%clk 0:02:48]}  h6 {[%clk 0:02:44]} 10. Be3 {[%clk 0:02:45]}  b5 {[%clk 0:02:39]} 11. a3 {[%clk 0:02:44]}  Bb7 {[%clk 0:02:38]} 12. O-O-O {[%clk 0:02:42]}  Na5 {[%clk 0:02:32]} 13. Ndxb5 {[%clk 0:02:34]}  axb5 {[%clk 0:02:30]} 14. Nxb5 {[%clk 0:02:35]}  Qc6 {[%clk 0:02:21]} 15. Nd4 {[%clk 0:02:22]}  Qc8 {[%clk 0:02:14]} 16. f3 {[%clk 0:02:15]}  Nc4 {[%clk 0:02:10]} 17. Bxc4 {[%clk 0:02:13]}  Qxc4 {[%clk 0:02:11]} 18. Kb1 {[%clk 0:01:43]}  d5 {[%clk 0:01:49]} 19. e5 {[%clk 0:01:33]}  Nd7 {[%clk 0:01:17]} 20. f4 {[%clk 0:01:31]}  O-O {[%clk 0:00:41]} 21. g4 {[%clk 0:01:22]}  Nc5 {[%clk 0:00:33]} 22. h4 {[%clk 0:01:21]}  Ne4 {[%clk 0:00:28]} 23. Qd3 {[%clk 0:01:21]}  Rfc8 {[%clk 0:00:27]} 24. h5 {[%clk 0:01:19]}  Qxd3 {[%clk 0:00:25]} 25. cxd3 {[%clk 0:01:19]}  Nc5 {[%clk 0:00:25]} 26. g5 {[%clk 0:01:17]}  Ba6 {[%clk 0:00:25]} 27. gxh6 {[%clk 0:01:15]}  Bxd3+ {[%clk 0:00:24]} 28. Ka1 {[%clk 0:01:16]}  gxh6 {[%clk 0:00:24]} 29. Rhg1+ {[%clk 0:01:14]}  Kh7 {[%clk 0:00:23]} 30. f5 {[%clk 0:01:10]}  Rab8 {[%clk 0:00:17]} 31. f6 {[%clk 0:01:08]}  Bf8 {[%clk 0:00:17]} 32. b4 {[%clk 0:01:00]}  Be4 {[%clk 0:00:12]} 33. bxc5 {[%clk 0:00:59]}  Rxc5 {[%clk 0:00:11]} 34. Rc1 {[%clk 0:00:56]}  Ra5 {[%clk 0:00:10]} 35. Rc3 {[%clk 0:00:49]}  Bxa3 {[%clk 0:00:09]} 36. Rg7+ {[%clk 0:00:49]}  Kh8 {[%clk 0:00:05]} 37. Nb3 {[%clk 0:00:46]}  Ra4 {[%clk 0:00:03]} 38. Bb6 {[%clk 0:00:39]}  Bb4+ {[%clk 0:00:02]} 39. Kb2 {[%clk 0:00:35]}  Bxc3+ {[%clk 0:00:03]} 40. Kxc3 {[%clk 0:00:35]}  Rxb6 {[%clk 0:00:04]} 41. Rxf7 {[%clk 0:00:34]}  Rc4+ {[%clk 0:00:04]} 42. Kd2 {[%clk 0:00:34]}  Rxb3 {[%clk 0:00:04]} 43. Rf8+ {[%clk 0:00:34]}  Kh7 {[%clk 0:00:04]} 44. Rf7+ {[%clk 0:00:35]}  Kg8 {[%clk 0:00:03]} 45. Rg7+ {[%clk 0:00:36]}  Kf8 {[%clk 0:00:04]} 46. Rc7 {[%clk 0:00:32]}  Rc2+ {[%clk 0:00:05]} 47. Rxc2 {[%clk 0:00:31]}  Bxc2 {[%clk 0:00:06]} 48. Kxc2 {[%clk 0:00:32]}  Re3 {[%clk 0:00:06]} 49. Kd2 {[%clk 0:00:32]}  Rxe5 {[%clk 0:00:07]} 50. f7 {[%clk 0:00:33]}  Rf5 {[%clk 0:00:07]} 51. Kd3 {[%clk 0:00:34]}  Kxf7 {[%clk 0:00:08]} 52. Kd4 {[%clk 0:00:35]}  Rxh5 {[%clk 0:00:08]} 0-1


[Site "https://www.chess.com"]